bitfinex/quotes_SOLUSD_20250822
["timestamp","ask_amount","ask_price","bid_price","bid_amount"]
[1755880884847,9.23977212,196.37,196.33,0.03]
[1755880885032,0.28432314,196.35,196.33,8.60977212]
[1755880885543,3.31774958,196.39,196.34,8.57977212]
[1755880885843,44.30432314,196.38,196.36,8.57977212]
[1755880886052,0.66,196.37,196.36,8.57977212]
[1755880886251,43.64432314,196.38,196.36,8.57977212]
[1755880886636,44.30432314,196.38,196.36,8.57977212]
[1755880886945,2.65774958,196.39,196.33,0.03]
[1755880886946,2.65774958,196.39,196.37,8.57977212]
[1755880887144,43.34,196.38,196.33,0.03]
[1755880887355,43.34,196.38,196.37,8.57977212]
[1755880889452,43.34,196.38,196.37,9.28977212]
[1755880889631,2.65687929,196.42,196.37,9.28977212]
[1755880889835,2.65687929,196.42,196.41,8.57977212]
[1755880890022,43.34,196.41,196.38,0.71]
[1755880890219,43.34,196.41,196.4,8.57977212]
[1755880890652,43.32,196.41,196.4,9.28977212]
[1755880890954,2.65650731,196.45,196.4,9.28977212]
[1755880890955,43.32,196.42,196.4,9.28977212]
[1755880891125,43.32,196.42,196.4,0.71]
[1755880891447,43.32,196.42,196.41,8.57977212]
[1755880891819,2.65650731,196.45,196.41,8.57977212]
[1755880892133,43.32,196.44,196.38,0.71]
[1755880892469,43.32,196.44,196.43,8.57977212]
[1755880892758,43.32,196.45,196.43,9.28977212]
[1755880892963,43.32,196.45,196.44,8.57977212]
[1755880893269,43.32,196.45,196.41,0.71]
[1755880893422,43.32,196.45,196.44,8.57977212]
[1755880893821,43.32,196.45,196.39,0.71]
[1755880894039,43.32,196.45,196.44,8.57977212]
[1755880894662,6.96618099,196.49,196.44,26.71]
[1755880894833,6.96618099,196.49,196.45,0.71]
[1755880895036,6.96618099,196.49,196.48,8.57977212]
[1755880895566,0.06,196.5,196.48,0.71]
[1755880895732,43.36,196.5,196.49,8.57977212]
[1755880896050,0.06,196.5,196.49,8.57977212]
[1755880896349,0.06,196.5,196.45,14.30559401]
[1755880896548,0.06,196.5,196.49,8.57977212]
[1755880896742,0.66,196.49,196.44,26.0]
[1755880897049,0.66,196.48,196.47,8.57977212]
[1755880897423,0.66,196.48,196.46,8.57977212]
[1755880898024,0.66,196.48,196.47,8.57977212]
[1755880898449,1.00432314,196.5,196.47,8.57977212]
[1755880898746,0.66,196.49,196.46,8.57977212]
[1755880898947,0.66,196.49,196.39,13.59559401]
[1755880899155,0.66,196.49,196.46,8.57977212]
[1755880899456,0.66,196.48,196.45,8.57977212]
[1755880899648,0.66,196.47,196.45,8.57977212]
[1755880899849,43.26,196.46,196.45,8.57977212]
[1755880900151,43.26,196.46,196.37,13.59559401]
[1755880900152,43.92,196.46,196.44,8.57977212]
[1755880900335,43.26,196.45,196.44,8.57977212]
[1755880901151,43.26,196.45,196.4,26.0]
[1755880901450,43.92,196.44,196.41,8.57977212]
[1755880901755,43.26,196.43,196.38,0.71]
[1755880901939,34.57977212,196.49,196.41,0.71]
[1755880901940,0.28432314,196.48,196.41,0.71]
[1755880902135,43.26,196.44,196.41,0.71]
[1755880902443,43.24,196.45,196.42,0.71]
[1755880902646,0.66,196.44,196.36,0.71]
[1755880902848,0.66,196.44,196.35,0.71]
[1755880902849,0.94432314,196.44,196.35,0.71]
[1755880903047,0.66,196.43,196.39,8.57977212]
[1755880903238,26.0,196.48,196.41,8.57977212]
[1755880903439,44.18432314,196.47,196.42,8.57977212]
[1755880903637,0.28432314,196.45,196.37,0.71]
[1755880903837,0.66,196.44,196.36,26.0]
[1755880904236,0.28432314,196.43,196.39,8.57977212]
[1755880904429,0.66,196.42,196.39,8.57977212]
[1755880904647,0.28432314,196.43,196.39,8.57977212]
[1755880904648,43.24,196.41,196.39,8.57977212]
[1755880905145,43.24,196.41,196.4,8.57977212]
[1755880905470,0.72,196.45,196.4,8.57977212]
[1755880905629,0.72,196.45,196.38,0.71]
[1755880905630,43.24,196.41,196.38,0.71]
[1755880905966,43.24,196.41,196.39,0.71]
[1755880906333,43.24,196.41,196.36,0.71]
[1755880906640,43.24,196.41,196.37,0.71]
[1755880906843,0.72,196.45,196.4,8.57977212]
[1755880907155,43.88,196.44,196.41,8.57977212]
[1755880907451,43.88,196.44,196.35,13.62559401]
[1755880907452,0.96432314,196.43,196.39,8.57977212]
[1755880907658,0.68,196.42,196.39,8.57977212]
[1755880908068,0.28432314,196.43,196.35,26.03]
[1755880908069,0.68,196.41,196.35,0.03]
[1755880908578,0.28432314,196.4,196.35,0.03]
[1755880908747,8.86409526,196.36,196.35,0.03]
[1755880908954,8.86409526,196.35,196.33,0.03]
[1755880909265,8.86409526,196.35,196.32,0.03]
[1755880909266,13.87991715,196.32,196.23,8.57977212]
[1755880909570,8.86409526,196.27,196.22,8.57977212]
[1755880909741,43.22,196.26,196.24,8.57977212]
[1755880909938,43.22,196.26,196.23,8.57977212]
[1755880910161,43.22,196.26,196.2,26.0]
[1755880910461,43.22,196.26,196.23,8.57977212]
[1755880910673,43.22,196.26,196.24,8.57977212]
[1755880910961,43.9,196.25,196.23,8.57977212]
[1755880911163,0.96432314,196.24,196.17,0.1]
[1755880911364,0.96432314,196.24,196.19,8.57977212]
[1755880911365,0.68,196.23,196.19,8.57977212]
[1755880911535,8.86409526,196.24,196.17,0.1]
[1755880911536,0.68,196.22,196.17,0.1]
[1755880911734,0.68,196.21,196.17,0.1]
[1755880911967,43.2,196.2,196.18,8.57977212]
[1755880912184,9.54409526,196.19,196.17,0.1]
[1755880912474,10.0,196.29,196.17,0.1]
[1755880912651,0.68,196.22,196.17,0.1]
[1755880912961,43.9,196.21,196.19,8.57977212]
[1755880913265,0.96432314,196.2,196.17,0.1]
[1755880913454,0.96432314,196.2,196.17,8.67977212]
[1755880913758,43.9,196.19,196.17,0.1]
[1755880913938,43.9,196.19,196.17,8.67977212]
[1755880914134,0.96432314,196.22,196.18,8.57977212]
[1755880914340,43.22,196.18,196.17,0.1]
[1755880915062,0.96432314,196.22,196.17,0.1]
[1755880915234,26.0,196.25,196.17,0.79]
[1755880915235,43.2,196.21,196.17,0.79]
[1755880915434,43.2,196.21,196.2,8.57977212]
[1755880915651,0.28432314,196.2,196.17,0.1]
[1755880915872,0.68,196.19,196.17,0.1]
[1755880916114,0.28432314,196.2,196.17,0.1]
[1755880916378,0.96432314,196.2,196.17,8.67977212]
[1755880916558,0.68,196.19,196.17,0.1]
[1755880916759,0.28432314,196.2,196.17,8.67977212]
[1755880916956,0.28432314,196.22,196.19,8.57977212]
[1755880917160,43.22,196.21,196.2,8.57977212]
[1755880917957,43.22,196.21,196.17,8.67977212]
[1755880918261,43.22,196.21,196.18,8.57977212]
[1755880918262,0.68,196.2,196.18,8.57977212]
[1755880918855,43.22,196.21,196.18,8.57977212]
[1755880919051,43.9,196.21,196.18,8.57977212]
[1755880919888,43.2,196.2,196.18,0.69]
[1755880920189,43.2,196.2,196.19,8.57977212]
[1755880920354,43.2,196.2,196.19,9.26977212]
[1755880920755,0.68,196.27,196.19,9.26977212]
[1755880920963,0.28432314,196.25,196.17,0.1]
[1755880921181,0.68,196.24,196.21,8.57977212]
[1755880921396,0.28432314,196.25,196.21,8.57977212]
[1755880921872,0.28432314,196.25,196.22,8.57977212]
[1755880921873,0.68,196.24,196.22,8.57977212]
[1755880922072,0.28432314,196.26,196.23,8.57977212]
[1755880922280,0.28432314,196.26,196.19,0.03]
[1755880922281,43.18,196.23,196.19,0.72]
[1755880922460,43.18,196.23,196.19,0.03]
[1755880922861,0.68,196.22,196.21,8.57977212]
[1755880923061,0.28432314,196.25,196.21,8.57977212]
[1755880923278,0.28432314,196.25,196.22,8.57977212]
[1755880923279,43.18,196.24,196.22,8.57977212]
[1755880923476,43.18,196.24,196.19,0.03]
[1755880923477,43.86,196.24,196.21,8.57977212]
[1755880923765,0.96432314,196.23,196.21,8.57977212]
[1755880923985,11.9168187,196.27,196.22,8.57977212]
[1755880924293,44.14432314,196.26,196.22,8.57977212]
[1755880924492,0.68,196.25,196.19,0.03]
[1755880924792,43.18,196.24,196.23,8.57977212]
[1755880925293,0.96432314,196.26,196.23,8.57977212]
[1755880925459,43.18,196.24,196.23,8.57977212]
[1755880925664,0.96432314,196.26,196.23,8.57977212]
[1755880925879,0.68,196.34,196.25,8.57977212]
[1755880926200,43.18,196.33,196.32,8.57977212]
[1755880926491,45.81691987,196.33,196.32,8.57977212]
[1755880926686,46.10124301,196.33,196.32,8.57977212]
[1755880926889,46.78124301,196.33,196.26,0.69]
[1755880927205,3.62124301,196.33,196.26,0.69]
[1755880927494,43.98216157,196.32,196.3,8.57977212]
[1755880927666,0.82216157,196.31,196.29,8.57977212]
[1755880927865,26.28432314,196.29,196.22,8.57977212]
[1755880928082,0.28432314,196.26,196.22,8.57977212]
[1755880928263,43.84,196.25,196.21,8.57977212]
[1755880928479,0.68,196.24,196.21,8.57977212]
[1755880928677,43.16,196.25,196.22,8.57977212]
[1755880928860,43.84,196.25,196.22,8.57977212]
[1755880929062,43.84,196.25,196.19,0.72]
[1755880929265,43.16,196.25,196.23,8.57977212]
[1755880929462,43.16,196.25,196.19,0.03]
[1755880929463,9.54409526,196.24,196.19,0.03]
[1755880929690,13.59559401,196.23,196.19,0.03]
[1755880929888,0.28432314,196.22,196.19,0.03]
[1755880930073,0.28432314,196.2,196.19,0.03]
[1755880930276,43.14,196.2,196.19,8.60977212]
[1755880930473,43.14,196.2,196.19,0.03]
[1755880930898,44.10432314,196.2,196.19,0.03]
[1755880931468,43.42432314,196.2,196.19,0.03]
[1755880931668,43.14,196.2,196.19,0.03]
[1755880931913,43.14,196.2,196.19,8.60977212]
[1755880932210,0.28432314,196.23,196.19,0.03]
[1755880932409,0.28432314,196.24,196.2,8.57977212]
[1755880932577,43.14,196.23,196.2,8.57977212]
[1755880932775,43.14,196.23,196.19,0.03]
[1755880933084,43.82,196.23,196.19,8.60977212]
[1755880933278,0.68,196.22,196.19,0.03]
[1755880933479,0.96432314,196.22,196.19,0.03]
[1755880934201,0.68,196.21,196.19,0.03]
[1755880934494,0.96432314,196.22,196.19,0.03]
[1755880935005,43.14,196.21,196.19,0.03]
[1755880935782,43.82,196.21,196.19,0.03]
[1755880935991,0.96432314,196.2,196.19,0.03]
[1755880936416,9.54409526,196.2,196.19,0.03]
[1755880936909,0.96432314,196.2,196.19,0.03]
[1755880937686,43.40432314,196.2,196.19,0.03]
[1755880938902,43.79,196.2,196.19,0.03]
[1755880939395,0.28432314,196.21,196.19,0.03]
[1755880939593,43.40432314,196.2,196.19,0.03]
[1755880940003,44.07432314,196.2,196.19,0.03]
[1755880940209,43.40432314,196.2,196.19,0.03]
[1755880941700,0.28432314,196.2,196.19,0.03]
[1755880941888,0.28432314,196.22,196.19,8.60977212]
[1755880942100,43.12,196.21,196.19,8.60977212]
[1755880942319,43.12,196.21,196.19,0.03]
[1755880943513,0.28432314,196.2,196.19,0.03]
[1755880944198,0.95432314,196.2,196.19,0.03]
[1755880944401,9.53409526,196.2,196.19,0.03]
[1755880944819,23.12968927,196.2,196.19,0.03]
[1755880945192,39.87991715,196.18,196.17,0.1]
[1755880945398,91.55968927,196.18,196.17,0.1]
[1755880945623,92.22968927,196.18,196.17,0.1]
[1755880946903,94.88638503,196.18,196.17,0.1]
[1755880947506,86.30661291,196.18,196.17,0.1]
[1755880947739,94.88638503,196.18,196.17,0.1]
[1755880951130,98.68015875,196.18,196.17,0.1]
[1755880951317,100.57704561,196.18,196.17,0.1]
[1755880952033,57.47682989,196.18,196.17,0.1]
[1755880952352,57.48363107,196.18,196.17,0.1]
[1755880952519,100.56363107,196.18,196.17,0.1]
[1755880953349,91.98385895,196.18,196.17,0.1]
[1755880953505,100.56363107,196.18,196.17,0.1]
[1755880954340,43.21803706,196.18,196.17,0.1]
[1755880954669,86.27803706,196.18,196.17,0.1]
[1755880954845,80.58079102,196.18,196.17,0.1]
[1755880955040,86.28619826,196.18,196.17,0.1]
[1755880955246,8.64642614,196.18,196.17,0.1]
[1755880955440,51.42242103,196.18,196.17,0.1]
[1755880955855,43.06,196.18,196.17,9.33977212]
[1755880956154,9.24977212,196.25,196.17,9.33977212]
[1755880956353,9.24977212,196.25,196.19,8.57977212]
[1755880956354,0.28432314,196.22,196.19,8.57977212]
[1755880956570,43.06,196.21,196.19,8.57977212]
[1755880956764,43.12,196.21,196.19,9.23977212]
[1755880956963,43.12,196.21,196.17,0.1]
[1755880957165,0.28432314,196.2,196.17,0.1]
[1755880957389,0.28432314,196.18,196.17,0.1]
[1755880957676,9.53409526,196.18,196.17,0.1]
[1755880958045,15.24084859,196.18,196.17,0.1]
[1755880958255,11.43634637,196.18,196.17,0.1]
[1755880958482,15.24054605,196.18,196.17,0.1]
[1755880958683,28.83614006,196.18,196.17,0.1]
[1755880959439,15.24054605,196.18,196.17,0.1]
[1755880959638,14.57054605,196.18,196.17,0.1]
[1755880959841,45.22657425,196.18,196.17,0.1]
[1755880960042,43.32432314,196.18,196.17,0.1]
[1755880960266,26.14216157,196.18,196.17,0.1]
[1755880960569,78.43193369,196.18,196.17,0.1]
[1755880960774,78.57409526,196.18,196.17,0.1]
[1755880960980,80.4758643,196.18,196.17,0.1]
[1755880961269,97.87499779,196.18,196.17,0.1]
[1755880961466,75.02963166,196.18,196.17,0.1]
[1755880961775,83.60940378,196.18,196.17,0.1]
[1755880962242,84.27940378,196.18,196.17,0.1]
[1755880962445,41.23940378,196.18,196.17,0.1]
[1755880962744,97.87499779,196.18,196.17,0.1]
[1755880963737,54.83499779,196.18,196.17,0.1]
[1755880964050,97.85369957,196.18,196.17,0.1]
[1755880964767,97.85260387,196.18,196.17,0.1]
[1755880965575,99.89555687,196.18,196.17,0.1]
[1755880966082,47.62578475,196.18,196.17,0.1]
[1755880966379,85.48780129,196.18,196.17,0.1]
[1755880966769,83.58700986,196.18,196.17,0.1]
[1755880967274,97.89260387,196.18,196.17,0.1]
[1755880967579,89.31283175,196.18,196.17,0.1]
[1755880967881,97.89260387,196.18,196.17,0.1]
[1755880969088,97.87260387,196.18,196.17,0.1]
[1755880969648,97.16260387,196.18,196.17,0.1]
[1755880969850,40.28268672,196.18,196.17,0.1]
[1755880970053,83.28175264,196.18,196.17,0.1]
[1755880970353,97.87166979,196.18,196.17,0.1]
[1755880970576,97.16166979,196.18,196.17,0.1]
[1755880971070,83.42391421,196.18,196.17,0.1]
[1755880971553,83.56607578,196.18,196.17,0.1]
[1755880972269,31.98630366,196.18,196.17,0.1]
[1755880972466,97.87166979,196.18,196.17,0.1]
[1755880973062,97.87407819,196.18,196.17,0.1]
[1755880973380,97.87975839,196.18,196.17,0.1]
[1755880973759,97.88101017,196.18,196.17,0.1]
[1755880974375,97.15101017,196.18,196.17,0.1]
[1755880975862,83.27109302,196.18,196.17,0.1]
[1755880976263,83.55541616,196.18,196.17,0.1]
[1755880976464,83.41325459,196.18,196.17,0.1]
[1755880976682,86.06989113,196.18,196.17,0.1]
[1755880976883,86.2120527,196.18,196.17,0.1]
[1755880977787,77.61228058,196.18,196.17,0.1]
[1755880978085,77.61228058,196.18,196.17,0.77]
[1755880978382,77.61228058,196.18,196.17,0.1]
[1755880980077,83.07724687,196.18,196.17,0.1]
[1755880980277,97.38284088,196.18,196.17,0.1]
[1755880980810,0.28432314,196.17,196.15,0.03]
[1755880980981,23.15284797,196.16,196.15,0.03]
[1755880981182,67.99620434,196.16,196.15,0.03]
[1755880981374,19.59955512,196.16,196.15,0.03]
[1755880981576,48.94396111,196.16,196.15,0.03]
[1755880981780,54.4089274,196.16,196.15,0.03]
[1755880981983,68.71452141,196.16,196.15,0.03]
[1755880982404,71.86595547,196.16,196.15,0.03]
[1755880982591,71.15595547,196.16,196.15,0.03]
[1755880982876,83.56036146,196.16,196.15,0.03]
[1755880983075,48.65963797,196.16,196.15,0.03]
[1755880983395,42.94,196.16,196.15,9.31640035]
[1755880983596,41.89,196.16,196.15,9.31640035]
[1755880983797,9.99304285,196.19,196.15,35.31640035]
[1755880984002,9.99304285,196.19,196.18,8.61640035]
[1755880984167,52.93304285,196.19,196.18,8.61640035]
[1755880984671,52.93304285,196.19,196.15,0.03]
[1755880984875,8.90072349,196.18,196.15,0.03]
[1755880985093,0.28432314,196.16,196.15,0.03]
[1755880985707,15.32895668,196.16,196.15,0.03]
[1755880986114,39.87991715,196.14,196.13,0.03]
[1755880986406,32.00255633,196.14,196.13,0.03]
[1755880986596,74.92255633,196.14,196.13,0.03]
[1755880986980,47.01648541,196.14,196.13,0.03]
[1755880987306,47.01721788,196.14,196.13,0.03]
[1755880987603,43.20432314,196.14,196.13,0.03]
[1755880987891,2.65511599,196.17,196.13,8.64640035]
[1755880988105,42.92,196.16,196.15,8.61640035]
[1755880988415,0.28432314,196.18,196.13,0.06]
[1755880988617,42.9,196.17,196.14,0.03]
[1755880989172,42.9,196.16,196.14,0.03]
[1755880989572,42.9,196.16,196.13,0.03]
[1755880989773,42.9,196.16,196.15,8.61640035]
[1755880990178,0.34432314,196.18,196.15,8.61640035]
[1755880990509,42.9,196.17,196.15,0.03]
[1755880990674,42.9,196.17,196.13,78.53]
[1755880990874,42.9,196.17,196.14,0.03]
[1755880991075,0.14216157,196.16,196.13,0.03]
[1755880991291,42.9,196.15,196.13,0.03]
[1755880991599,42.9,196.15,196.13,8.64640035]
[1755880991906,0.28432314,196.14,196.13,0.03]
[1755880992108,4.80914675,196.14,196.13,0.03]
[1755880992435,6.7165795,196.14,196.13,0.03]
[1755880992620,4.80914675,196.14,196.13,0.03]
[1755880992819,6.7165795,196.14,196.13,0.03]
[1755880993113,4.80914675,196.14,196.13,0.03]
[1755880993308,13.4255471,196.14,196.13,0.03]
[1755880993517,15.3329475,196.14,196.13,0.03]
[1755880994281,6.71654715,196.14,196.13,0.03]
[1755880994727,15.3329475,196.14,196.13,0.03]
[1755880995299,15.3329475,196.14,196.11,0.03]
[1755880995300,28.92854151,196.14,196.11,0.03]
[1755880995515,0.28432314,196.12,196.11,0.03]
[1755880995687,6.00654715,196.12,196.11,0.03]
[1755880996022,6.71654715,196.12,196.11,0.03]
[1755880996524,48.86654715,196.12,196.11,0.03]
[1755880996826,43.14432314,196.12,196.11,8.64640035]
[1755880997314,43.14432314,196.12,196.11,0.03]
[1755880997518,52.48072349,196.12,196.11,0.03]
[1755880997708,49.58549085,196.12,196.11,0.03]
[1755880997899,58.2018912,196.12,196.11,0.03]
[1755880998807,71.79748521,196.12,196.11,0.03]
[1755880999194,66.0763175,196.12,196.11,0.03]
[1755880999520,63.1807613,196.12,196.11,0.03]
[1755880999721,39.87991715,196.1,196.09,0.03]
[1755880999922,97.07716165,196.1,196.09,0.03]
[1755881000103,97.79716165,196.1,196.09,0.03]
[1755881000830,84.20156764,196.1,196.09,0.03]
[1755881001013,75.56516729,196.1,196.09,0.03]
[1755881001401,97.77716165,196.1,196.09,0.03]
[1755881002522,97.77687173,196.1,196.09,0.03]
[1755881004436,89.16047138,196.1,196.09,0.03]
[1755881004730,97.77687173,196.1,196.09,0.03]
[1755881005031,13.87991715,196.09,196.07,0.03]
[1755881005238,57.46127772,196.08,196.07,0.03]
[1755881005405,48.84487737,196.08,196.07,0.03]
[1755881005905,49.56487737,196.08,196.07,0.03]
[1755881006305,48.84487737,196.08,196.07,0.03]
[1755881006529,6.00487737,196.08,196.07,8.64640035]
[1755881006738,42.82,196.08,196.07,8.64640035]
[1755881006943,26.0,196.1,196.07,8.64640035]
[1755881007107,8.61640035,196.16,196.09,8.61640035]
[1755881007309,48.53271476,196.15,196.12,8.61640035]
[1755881007514,74.53271476,196.14,196.12,8.61640035]
[1755881007717,5.71271476,196.13,196.11,8.61640035]
[1755881007930,42.82,196.12,196.11,8.61640035]
[1755881008139,43.10432314,196.12,196.11,8.61640035]
[1755881008344,0.28432314,196.11,196.08,0.12]
[1755881008554,42.82,196.1,196.08,0.12]
[1755881009121,2.65570887,196.12,196.09,0.12]
[1755881009321,2.65570887,196.12,196.1,0.12]
[1755881009523,42.82,196.11,196.07,0.03]
[1755881009850,43.10432314,196.11,196.1,8.61640035]
[1755881010829,0.28432314,196.1,196.07,0.03]
[1755881011143,0.28432314,196.1,196.08,8.61640035]
[1755881011144,43.10432314,196.09,196.08,8.61640035]
[1755881012622,43.10432314,196.09,196.07,0.03]
[1755881012829,0.28432314,196.09,196.08,8.61640035]
[1755881013028,43.08432314,196.09,196.07,0.03]
[1755881013366,0.28432314,196.09,196.08,8.61640035]
[1755881013533,43.80432314,196.08,196.07,0.03]
[1755881013846,52.42072349,196.08,196.07,0.03]
[1755881014053,58.13449605,196.08,196.07,0.03]
[1755881014642,71.73009006,196.08,196.07,0.03]
[1755881015213,73.77398206,196.08,196.07,0.03]
[1755881015632,71.73009006,196.08,196.07,0.03]
[1755881015855,73.75398306,196.08,196.07,0.03]
[1755881016620,71.71009006,196.08,196.07,0.03]
[1755881017635,69.80221816,196.08,196.07,0.03]
[1755881017834,63.08876814,196.08,196.07,0.03]
[1755881018045,5.99317413,196.08,196.07,0.03]
[1755881018232,48.48865086,196.08,196.07,0.03]
[1755881018433,3.94806223,196.08,196.07,0.03]
[1755881018630,46.8702238,196.08,196.07,0.03]
[1755881019344,51.68072349,196.08,196.07,0.03]
[1755881019544,69.80077098,196.08,196.07,0.03]
[1755881019841,71.70310974,196.08,196.07,0.03]
[1755881020048,57.38751573,196.08,196.07,0.03]
[1755881020225,57.38733381,196.08,196.07,0.03]
[1755881020433,58.10721206,196.08,196.07,0.03]
[1755881020754,58.08721206,196.08,196.07,0.03]
[1755881020957,43.04432314,196.08,196.07,0.03]
[1755881021143,0.28432314,196.08,196.07,0.03]
[1755881021349,69.04432314,196.08,196.07,0.03]
[1755881022153,26.28432314,196.08,196.07,0.03]
[1755881022359,43.04432314,196.08,196.07,0.03]
[1755881023337,43.76432314,196.08,196.07,0.03]
[1755881023667,52.38072349,196.08,196.07,0.03]
[1755881024358,49.23604215,196.08,196.07,0.03]
[1755881025257,43.76432314,196.08,196.07,0.03]
[1755881025429,43.04432314,196.08,196.07,0.03]
[1755881025633,0.28432314,196.08,196.07,5.50171901]
[1755881025832,43.02432314,196.08,196.07,0.03]
[1755881026239,42.88216157,196.08,196.07,0.03]
[1755881026639,42.74,196.08,196.07,5.62171901]
[1755881026836,42.74,196.08,196.07,0.03]
[1755881027057,43.02432314,196.08,196.07,0.03]
[1755881027231,43.02432314,196.08,196.07,5.50171901]
[1755881028564,43.02432314,196.08,196.07,0.03]
[1755881028758,0.28432314,196.08,196.07,0.03]
[1755881028964,43.02432314,196.08,196.07,0.03]
[1755881029266,69.02432314,196.08,196.07,0.03]
[1755881029467,72.40010408,196.08,196.07,0.03]
[1755881030467,2.94010408,196.08,196.07,0.03]
[1755881030642,2.65578094,196.08,196.07,5.50171901]
[1755881030839,45.37578094,196.08,196.07,5.50171901]
[1755881031666,2.65578094,196.08,196.07,5.50171901]
[1755881031974,45.37578094,196.08,196.07,5.50171901]
[1755881032269,2.65578094,196.08,196.07,5.50171901]
[1755881032443,45.37578094,196.08,196.07,5.50171901]
[1755881033341,45.35578094,196.08,196.07,5.50171901]
[1755881034047,45.35578094,196.08,196.07,0.03]
[1755881034473,45.35578094,196.08,196.07,8.64683651]
[1755881034877,45.35578094,196.08,196.07,0.03]
[1755881035178,45.64010408,196.08,196.07,8.64683651]
[1755881035349,46.36010408,196.08,196.07,0.03]
[1755881036777,45.62010408,196.08,196.07,0.03]
[1755881036965,45.62010408,196.08,196.07,8.64683651]
[1755881037476,45.62010408,196.08,196.07,0.03]
[1755881037769,46.34010408,196.08,196.07,0.03]
[1755881037974,45.62010408,196.08,196.07,0.03]
[1755881038671,46.34010408,196.08,196.07,0.03]
[1755881039380,65.65980632,196.08,196.07,0.03]
[1755881039546,74.27664283,196.08,196.07,0.03]
[1755881039855,65.65980632,196.08,196.07,0.03]
[1755881040059,74.27664283,196.08,196.07,0.03]
[1755881042155,22.97980632,196.08,196.07,0.03]
[1755881042461,31.59664283,196.08,196.07,0.03]
[1755881042781,34.37988917,196.08,196.07,0.03]
[1755881042983,49.13188792,196.08,196.07,8.64683651]
[1755881043164,2.65578094,196.08,196.07,8.64683651]
[1755881043482,45.31578094,196.08,196.07,8.64683651]
[1755881044197,45.31578094,196.08,196.07,0.03]
[1755881044482,45.31578094,196.08,196.07,8.64683651]
[1755881044784,46.32010408,196.08,196.07,8.64683651]
[1755881044958,45.60010408,196.08,196.07,2.16980351]
[1755881045156,0.28432314,196.07,196.06,8.64683651]
[1755881045970,1.00432314,196.07,196.06,0.03]
[1755881046288,13.43748405,196.07,196.06,0.03]
[1755881046454,15.34574782,196.07,196.06,0.03]
[1755881046660,6.72891131,196.07,196.06,0.03]
[1755881046863,54.94134183,196.07,196.06,0.03]
[1755881047362,56.98533883,196.07,196.06,0.03]
[1755881049356,99.60533883,196.07,196.06,0.03]
[1755881049556,34.05290831,196.07,196.06,0.03]
[1755881049876,86.00974482,196.07,196.06,0.03]
[1755881050571,77.39290831,196.07,196.06,0.03]
[1755881051172,76.67290831,196.07,196.06,0.03]
[1755881051370,74.62891131,196.07,196.06,0.03]
[1755881052094,26.28432314,196.07,196.06,0.03]
[1755881052269,74.62834215,196.07,196.06,0.03]
[1755881052863,72.72028297,196.07,196.06,0.03]
[1755881053102,74.62826077,196.07,196.06,0.03]
[1755881053261,74.62843899,196.07,196.06,0.03]
[1755881054298,75.34843899,196.07,196.06,0.03]
[1755881054468,74.62843899,196.07,196.06,0.03]
[1755881055569,75.34843899,196.07,196.06,0.03]
[1755881058798,94.41530089,196.07,196.06,0.03]
[1755881058972,80.81970688,196.07,196.06,0.03]
[1755881059168,32.72843899,196.07,196.06,0.03]
[1755881059372,75.30843899,196.07,196.06,0.03]
[1755881059595,74.58843899,196.07,196.06,0.03]
[1755881059798,32.00843899,196.07,196.06,0.03]
[1755881059980,31.86627742,196.07,196.06,5.50126789]
[1755881060176,72.5381214,196.07,196.06,0.03]
[1755881060686,68.86432314,196.07,196.06,0.03]